bitfinex/quotes_ETHUSD_20240917
["timestamp","ask_amount","ask_price","bid_price","bid_amount"]
[1726589495844,2.95805396,2390.1,2389.9,0.06822319]
[1726589496462,3.83206844,2390.1,2389.6,7.18466]
[1726589496668,3.83206844,2390.1,2390.0,0.0681912]
[1726589496849,3.83206844,2390.1,2389.6,7.18466]
[1726589497054,0.93279636,2390.0,2389.6,7.18466]
[1726589497550,0.93279636,2390.0,2389.7,4.18461]
[1726589497745,2.95805396,2390.1,2389.7,4.18461]
[1726589498158,2.95805396,2390.1,2389.6,7.18478]
[1726589498860,7.14197396,2390.1,2389.5,4.18482]
[1726589499063,7.14197396,2390.1,2389.3,6.18527]
[1726589499278,8.01598844,2390.1,2389.5,4.18496]
[1726589499596,0.93281136,2390.0,2389.5,4.18496]
[1726589500159,0.93281136,2390.0,2389.5,4.18489]
[1726589501303,2.4565,2389.9,2389.4,0.04534322]
[1726589501599,7.51482448,2389.9,2389.5,0.06725336]
[1726589501797,0.33893114,2389.8,2389.5,0.06725336]
[1726589502900,4.52345114,2389.8,2389.5,0.06725336]
[1726589504199,7.42789448,2389.7,2389.5,0.06725336]
[1726589504394,12.16281448,2389.6,2389.5,0.06725336]
[1726589504612,4.18497,2389.5,2389.4,0.04534322]
[1726589504806,5.60751384,2389.5,2389.4,0.04534322]
[1726589505107,9.46851159,2389.6,2389.4,0.11273832]
[1726589505287,10.02132997,2389.5,2389.4,0.04534322]
[1726589505605,13.8178551,2389.5,2389.4,0.04534322]
[1726589505959,14.25486492,2389.5,2389.4,0.04534322]
[1726589506416,10.06989492,2389.5,2389.4,0.04534322]
[1726589506568,8.32075997,2389.5,2389.4,0.04534322]
[1726589506900,10.06989492,2389.5,2389.4,0.04534322]
[1726589507106,9.6302432,2389.5,2389.4,0.04534322]
[1726589507304,10.06989492,2389.5,2389.4,0.04534322]
[1726589507890,5.88492492,2389.5,2389.4,0.04534322]
[1726589508062,5.44564241,2389.5,2389.4,0.04534322]
[1726589508419,5.88492492,2389.5,2389.4,0.04534322]
[1726589508777,10.06989492,2389.5,2389.4,0.04534322]
[1726589509108,5.88492492,2389.5,2389.4,0.04534322]
[1726589509903,4.13578997,2389.5,2389.4,0.04534322]
[1726589510405,12.50572997,2389.5,2389.4,0.04534322]
[1726589510605,10.85434,2389.5,2389.4,0.04534322]
[1726589512111,14.79646882,2389.5,2389.4,0.04534322]
[1726589512609,10.61149882,2389.5,2389.4,0.04534322]
[1726589512908,10.61149882,2389.5,2389.4,0.11303912]
[1726589513107,12.35320844,2389.5,2389.4,0.04534322]
[1726589514881,12.35320844,2389.5,2389.4,0.11303912]
[1726589515073,12.35320844,2389.5,2389.4,0.04534322]
[1726589515274,12.35320844,2389.5,2389.4,0.11303912]
[1726589515498,14.54040312,2389.5,2389.4,0.04534322]
[1726589516079,12.35320844,2389.5,2389.4,0.04534322]
[1726589516768,12.35320844,2389.5,2389.4,0.11303912]
[1726589516769,15.09057254,2389.5,2389.4,0.11303912]
[1726589516969,15.09057254,2389.5,2389.4,0.04534322]
[1726589517169,12.90320844,2389.5,2389.4,0.04534322]
[1726589517397,12.90320844,2389.5,2389.4,0.11303912]
[1726589517605,12.90320844,2389.5,2389.4,0.04534322]
[1726589518013,15.09059009,2389.5,2389.4,0.04534322]
[1726589518204,12.90320844,2389.5,2389.4,0.04534322]
[1726589518508,12.90320844,2389.5,2389.4,0.11303912]
[1726589518812,12.90320844,2389.5,2389.4,0.04534322]
[1726589519491,4.22610962,2389.5,2389.4,0.04534322]
[1726589519670,6.41362082,2389.5,2389.4,0.11303912]
[1726589519868,6.41362082,2389.5,2389.4,0.04534322]
[1726589520070,6.41362082,2389.5,2389.4,0.1132058]
[1726589520303,2.4844,2389.5,2389.4,0.04534322]
[1726589520694,4.23436237,2389.5,2389.4,0.11166606]
[1726589521004,4.23436237,2389.5,2389.4,4.29679642]
[1726589521005,1.31242483,2389.5,2389.4,4.29679642]
[1726589521407,1.31242483,2389.5,2389.4,0.04534322]
[1726589521620,1.31242483,2389.5,2389.4,0.11164642]
[1726589522573,1.83741058,2389.5,2389.4,0.11164642]
[1726589522777,2.27494812,2389.5,2389.4,0.11164642]
[1726589522974,1.83752347,2389.5,2389.4,0.11164642]
[1726589523401,1.31253772,2389.5,2389.4,4.29679642]
[1726589523709,1.31253772,2389.5,2389.4,0.11164642]
[1726589524493,4.12146237,2389.5,2389.4,0.11164642]
[1726589524726,8.06359119,2389.5,2389.4,0.11164642]
[1726589524987,8.50109913,2389.5,2389.4,0.11153665]
[1726589525196,9.76969004,2389.5,2389.4,0.11153665]
[1726589525399,13.95466004,2389.5,2389.4,0.04534322]
[1726589526230,11.76718973,2389.5,2389.4,0.04534322]
[1726589526374,13.95473411,2389.5,2389.4,0.04534322]
[1726589526582,11.76718973,2389.5,2389.4,0.04534322]
[1726589526975,11.76718973,2389.5,2389.4,0.11153665]
[1726589528846,16.50215973,2389.5,2389.4,0.11153665]
[1726589528994,16.50215973,2389.5,2389.4,0.04534322]
[1726589528995,19.1274275,2389.5,2389.4,0.04534322]
[1726589529346,16.50215973,2389.5,2389.4,0.04534322]
[1726589531092,19.56497213,2389.5,2389.4,0.04534322]
[1726589531297,16.50215973,2389.5,2389.4,0.04534322]
[1726589531497,19.56367924,2389.5,2389.4,0.04534322]
[1726589531694,16.50086684,2389.5,2389.4,0.04534322]
[1726589532745,19.56504402,2389.5,2389.4,0.04534322]
[1726589533151,16.50086684,2389.5,2389.4,0.04534322]
[1726589533463,19.56504402,2389.5,2389.4,0.04534322]
[1726589536515,19.56607607,2389.5,2389.4,0.04534322]
[1726589536732,16.50086684,2389.5,2389.4,0.04534322]
[1726589537733,19.56607607,2389.5,2389.4,0.04534322]
[1726589540088,23.75104607,2389.5,2389.4,0.04534322]
[1726589540383,20.68583684,2389.5,2389.4,0.04534322]
[1726589541588,23.5548353,2389.5,2389.4,0.04534322]
[1726589541780,27.17697833,2389.5,2389.4,0.04534322]
[1726589542088,20.68583684,2389.5,2389.4,0.04534322]
[1726589542248,27.18009359,2389.5,2389.4,0.04534322]
[1726589543062,23.55612644,2389.5,2389.4,0.04534322]
[1726589543655,2.4998,2388.9,2388.5,4.18668]
[1726589543890,1.31476397,2388.6,2388.4,4.1868]
[1726589544088,1.31478954,2388.5,2388.4,4.1868]
[1726589545156,1.75307096,2388.5,2388.4,4.1868]
[1726589546596,1.75307096,2388.5,2388.4,4.25372431]
[1726589546964,1.75307096,2388.5,2388.4,0.06692431]
[1726589547151,2.19162096,2388.5,2388.4,0.06692431]
[1726589547359,10.75865397,2388.6,2388.1,7.18739]
[1726589547560,1.31507823,2388.2,2388.0,4.18746]
[1726589547877,1.31507823,2388.1,2388.0,4.18746]
[1726589548219,1.75343764,2388.1,2387.9,4.18767]
[1726589548401,1.75343764,2388.0,2387.7,4.2277357]
[1726589548700,1.31420098,2387.8,2387.7,4.2277357]
[1726589549905,0.8760722,2387.8,2387.7,4.2277357]
[1726589550403,1.31420098,2387.9,2387.7,4.2277357]
[1726589550700,1.31420098,2387.9,2387.7,0.0397257]
[1726589550701,0.87572565,2387.8,2387.7,0.0397257]
[1726589550860,1.31365773,2387.8,2387.7,0.0397257]
[1726589551289,2.05886055,2387.8,2387.7,0.0397257]
[1726589551486,1.62020722,2387.8,2387.7,0.0397257]
[1726589551688,17.14243413,2387.8,2387.7,0.0397257]
[1726589552101,11.31507139,2387.8,2387.7,0.0397257]
[1726589552510,15.50302139,2387.8,2387.7,0.0397257]
[1726589553807,17.68924299,2387.8,2387.7,0.0397257]
[1726589554502,15.50302139,2387.8,2387.7,0.0397257]
[1726589554708,17.68924299,2387.8,2387.7,0.0397257]
[1726589555112,17.6879971,2387.8,2387.7,0.0397257]
[1726589555317,15.50302139,2387.8,2387.7,0.0397257]
[1726589555622,21.87462886,2387.8,2387.7,0.0397257]
[1726589555819,13.49877085,2387.8,2387.7,0.0397257]
[1726589555974,16.26327105,2387.8,2387.7,0.0397257]
[1726589556173,16.69997693,2387.8,2387.7,0.0397257]
[1726589556421,17.68672085,2387.8,2387.7,0.0397257]
[1726589556715,11.31507139,2387.8,2387.7,0.0397257]
[1726589556886,15.50302139,2387.8,2387.7,0.0397257]
[1726589557090,11.31507139,2387.8,2387.7,0.10561029]
[1726589557320,13.06105211,2387.8,2387.7,0.0397257]
[1726589557516,7.69571445,2387.8,2387.7,0.0397257]
[1726589557818,8.13239542,2387.8,2387.7,0.10561029]
[1726589558018,6.82294257,2387.8,2387.7,0.0397257]
[1726589558383,3.50770719,2387.8,2387.7,0.0397257]
[1726589558795,0.87271462,2387.9,2387.7,0.10561029]
[1726589558982,3.58015285,2388.0,2387.7,0.10561029]
[1726589558983,3.14341462,2388.0,2387.7,0.0397257]
[1726589559183,0.87271462,2388.2,2387.8,0.06582817]
[1726589559522,0.87271462,2388.3,2387.9,4.18769]
[1726589559681,1.62369792,2388.3,2387.9,4.25335211]
[1726589559992,1.62369792,2388.3,2387.9,4.25339211]
[1726589560190,0.87271462,2388.3,2387.9,4.18773]
[1726589560419,0.87271462,2388.3,2388.0,0.06563007]
[1726589560620,5.05980462,2388.3,2388.0,0.06563007]
[1726589560784,4.81484344,2388.2,2388.0,0.06563007]
[1726589560981,4.81484344,2388.2,2387.7,4.2277557]
[1726589560982,9.00213344,2388.2,2387.7,4.2277557]
[1726589561291,3.36265863,2388.1,2387.8,0.06562514]
[1726589561513,4.23537325,2388.1,2387.8,0.06562514]
[1726589561817,8.42287325,2388.1,2387.9,0.06559309]
[1726589562029,4.23537325,2388.1,2387.7,0.0397257]
[1726589562180,2.24014811,2388.0,2387.7,0.0397257]
[1726589562608,6.18227693,2388.0,2387.7,0.0397257]
[1726589562810,10.36990693,2388.0,2387.7,0.0397257]
[1726589563011,0.87271462,2387.9,2387.7,0.0397257]
[1726589563220,0.87271462,2387.8,2387.7,0.0397257]
[1726589563447,6.40319867,2387.8,2387.7,0.0397257]
[1726589563748,0.87271462,2388.0,2387.7,4.2278557]
[1726589563907,0.87271462,2388.1,2387.7,4.2278557]
[1726589564108,0.87271462,2388.1,2387.8,4.18778]
[1726589564302,0.87271462,2388.2,2387.7,4.2277957]
[1726589564555,2.3424,2387.9,2387.7,0.0397257]
[1726589564755,3.47688634,2387.9,2387.7,0.0397257]
[1726589565053,4.34960096,2387.9,2387.7,0.0397257]
[1726589566434,3.47688634,2387.9,2387.7,0.0397257]
[1726589566805,1.13448634,2387.9,2387.7,0.0397257]
[1726589567156,0.87271462,2388.1,2387.8,4.18793]
[1726589567454,0.87271462,2388.2,2387.8,4.18793]
[1726589567609,5.05998462,2388.2,2387.7,4.2278357]
[1726589567806,5.05998462,2388.2,2387.7,0.0397257]
[1726589568034,0.87271462,2388.1,2387.7,0.0397257]
[1726589568237,2.73118032,2388.1,2387.7,0.0397257]
[1726589568425,6.91861032,2388.1,2387.7,0.0397257]
[1726589568720,2.3372,2387.9,2387.7,0.0397257]
[1726589569552,3.20991462,2387.9,2387.7,0.0397257]
[1726589569724,2.3372,2387.9,2387.7,0.0397257]
[1726589569931,1.13397334,2387.8,2387.7,0.0397257]
[1726589571874,0.87271462,2388.0,2387.7,0.0397257]
[1726589572518,5.06032462,2388.0,2387.7,0.0397257]
[1726589572728,0.87271462,2387.9,2387.7,0.0397257]
[1726589573252,15.24752882,2387.8,2387.7,0.0397257]
[1726589573561,19.32989091,2387.8,2387.7,0.0397257]
[1726589573924,19.76643431,2387.8,2387.7,0.0397257]
[1726589574352,19.76749418,2387.8,2387.7,0.0397257]
[1726589574550,19.76755831,2387.8,2387.7,0.0397257]
[1726589574720,17.58391019,2387.8,2387.7,0.0397257]
[1726589574929,23.95555337,2387.8,2387.7,0.0397257]
[1726589575130,21.77186019,2387.8,2387.7,0.0397257]
[1726589575469,23.95552419,2387.8,2387.7,0.0397257]
[1726589575634,21.77186019,2387.8,2387.7,0.0397257]
[1726589577058,23.95574154,2387.8,2387.7,0.0397257]
[1726589577365,21.77186019,2387.8,2387.7,0.0397257]
[1726589578987,17.58391019,2387.8,2387.7,0.0397257]
[1726589580037,17.54051019,2387.8,2387.7,0.0397257]
[1726589580482,21.72846019,2387.8,2387.7,0.0397257]
[1726589580789,24.34876098,2387.8,2387.7,0.0397257]
[1726589581887,21.72846019,2387.8,2387.7,0.0397257]
[1726589582757,24.34366233,2387.8,2387.7,0.0397257]
[1726589583375,21.72846019,2387.8,2387.7,0.0397257]
[1726589584141,24.34366233,2387.8,2387.7,0.0397257]
[1726589585488,21.72846019,2387.8,2387.7,0.0397257]
[1726589585787,17.54051019,2387.8,2387.7,0.0397257]
[1726589586100,21.72846019,2387.8,2387.7,0.0397257]
[1726589586393,24.34614027,2387.8,2387.7,0.0397257]
[1726589586689,24.16195967,2387.8,2387.7,0.0397257]
[1726589588281,27.21302883,2387.8,2387.7,0.0397257]
[1726589588493,23.02507883,2387.8,2387.7,0.0397257]
[1726589588640,18.65074833,2387.8,2387.7,0.0397257]
[1726589588867,20.21983085,2387.8,2387.7,0.0397257]
[1726589589374,16.03188085,2387.8,2387.7,0.0397257]
[1726589590361,18.65140878,2387.8,2387.7,0.0397257]
[1726589590566,16.03188085,2387.8,2387.7,0.0397257]
[1726589590883,18.65184775,2387.8,2387.7,0.0397257]
[1726589591393,16.03188085,2387.8,2387.7,0.0397257]
[1726589591581,19.08295001,2387.8,2387.7,0.0397257]
[1726589592179,16.03188085,2387.8,2387.7,0.0397257]
[1726589592540,23.27090001,2387.8,2387.7,0.0397257]
[1726589592697,16.03188085,2387.8,2387.7,0.0397257]
[1726589592879,19.09083417,2387.8,2387.7,0.0397257]
[1726589593519,16.03188085,2387.8,2387.7,0.0397257]
[1726589593836,19.09083417,2387.8,2387.7,0.0397257]
[1726589594633,16.03188085,2387.8,2387.7,0.0397257]
[1726589594799,19.09083417,2387.8,2387.7,0.0397257]
[1726589594991,16.03188085,2387.8,2387.7,0.0397257]
[1726589595327,23.27878417,2387.8,2387.7,0.0397257]
[1726589595529,20.21983085,2387.8,2387.7,0.0397257]
[1726589596201,23.14571325,2387.8,2387.7,0.0397257]
[1726589596395,20.21983085,2387.8,2387.7,0.0397257]
[1726589596594,23.14660606,2387.8,2387.7,0.0397257]
[1726589596810,26.76252626,2387.8,2387.7,0.0397257]
[1726589597721,18.96018719,2387.8,2387.7,0.0397257]
[1726589597923,26.76405739,2387.8,2387.7,0.0397257]
[1726589598483,16.03188085,2387.8,2387.7,0.0397257]
[1726589599125,16.20896128,2387.8,2387.7,0.0397257]
[1726589599334,9.24753442,2387.8,2387.7,0.0397257]
[1726589599489,8.3759,2387.8,2387.7,0.0397257]
[1726589599690,10.81633375,2387.8,2387.7,0.0397257]
[1726589600629,6.62838375,2387.8,2387.7,0.0397257]
[1726589600954,12.59849319,2387.8,2387.7,0.10143626]
[1726589601157,12.59849319,2387.8,2387.7,0.0397257]
[1726589601514,13.14849319,2387.8,2387.7,0.0397257]
[1726589601811,22.80810499,2387.8,2387.7,0.0397257]
[1726589602015,19.74464319,2387.8,2387.7,0.0397257]
[1726589602960,19.74464319,2387.8,2387.7,0.0397257]
[1726589603260,26.29383887,2387.8,2387.7,0.0397257]
[1726589603412,22.67377717,2387.8,2387.7,0.0397257]
[1726589604040,19.74464319,2387.8,2387.7,0.0397257]
[1726589604242,22.67373422,2387.8,2387.7,0.0397257]
[1726589604470,19.74464319,2387.8,2387.7,0.0397257]
[1726589604681,26.29373075,2387.8,2387.7,0.0397257]
[1726589604890,26.29361568,2387.8,2387.7,0.0397257]
[1726589605186,19.74464319,2387.8,2387.7,0.0397257]
[1726589605383,23.68677201,2387.8,2387.7,0.0397257]
[1726589605588,30.23612291,2387.8,2387.7,0.0397257]
[1726589605743,23.68677201,2387.8,2387.7,0.0397257]
[1726589605946,30.23793517,2387.8,2387.7,0.0397257]
[1726589606309,30.23807204,2387.8,2387.7,0.0397257]
[1726589607747,27.79834798,2387.8,2387.7,0.0397257]
[1726589607944,4.18886,2387.3,2386.9,4.18951]
[1726589608294,1.75178108,2387.0,2386.9,4.18951]
[1726589608677,1.31310848,2387.1,2387.0,4.18935]
[1726589608859,1.75178108,2387.1,2387.0,4.18935]
[1726589609064,1.75178108,2387.2,2387.0,4.18935]
[1726589609264,1.31310794,2387.1,2387.0,4.18935]
[1726589609590,1.75178108,2387.1,2387.0,4.18935]
[1726589611968,1.75178108,2387.1,2386.6,7.19001]
[1726589611969,4.18967,2386.9,2386.4,4.1904]
[1726589612202,1.31291204,2386.5,2386.4,8.38081]
[1726589612398,0.87510781,2386.5,2386.4,8.38081]
[1726589612991,1.31291204,2386.6,2386.5,4.19023]
[1726589615979,4.19164,2385.7,2385.6,0.0397257]
[1726589616208,12.74457282,2385.7,2385.6,0.0397257]
[1726589616414,8.55293282,2385.7,2385.6,0.0397257]
[1726589616613,8.13376882,2385.7,2385.6,0.0397257]
[1726589616910,6.12738814,2385.7,2385.6,0.0397257]
[1726589617077,8.13376882,2385.7,2385.6,0.0397257]
[1726589617286,10.31684823,2385.7,2385.6,0.0397257]
[1726589617493,14.50848823,2385.7,2385.6,0.0397257]
[1726589617703,14.00932764,2385.7,2385.6,0.0397257]
[1726589617870,6.81644234,2385.8,2385.6,0.0397257]
[1726589618068,1.74660498,2385.7,2385.6,4.2315357]
[1726589618282,2.18333651,2385.8,2385.7,4.19164]
[1726589618283,1.31002822,2385.8,2385.7,4.19164]
[1726589618480,0.87291223,2385.8,2385.7,4.19164]
[1726589618709,0.87291223,2385.8,2385.6,0.0397257]
[1726589619119,0.87291223,2385.7,2385.6,0.0397257]
[1726589619324,0.87291223,2385.8,2385.6,0.0397257]
[1726589620962,1.31002822,2385.9,2385.6,0.0397257]
[1726589620963,5.06420223,2385.9,2385.6,0.0397257]
[1726589622036,0.87291223,2385.8,2385.6,0.0397257]
[1726589622231,4.19164,2385.7,2385.6,0.0397257]
[1726589622422,0.87291223,2385.8,2385.6,0.0397257]
[1726589622623,0.87291223,2385.9,2385.6,4.2315157]
[1726589622850,0.87291223,2386.0,2385.7,4.19162]
[1726589623065,0.87291223,2386.0,2385.6,4.2315157]
[1726589623066,0.87291223,2386.0,2385.6,4.2314557]
[1726589623272,0.87291223,2386.0,2385.7,4.19154]
[1726589623420,1.31002822,2386.1,2385.6,4.2314557]
[1726589623421,5.06387223,2386.1,2385.6,4.2314457]
[1726589623621,5.06417223,2386.0,2385.6,0.0397257]
[1726589624372,4.1913,2385.9,2385.6,0.0397257]
[1726589624524,4.19129,2385.9,2385.6,0.0397257]
[1726589624721,5.06420223,2385.9,2385.6,0.0397257]
[1726589625633,9.25561223,2385.9,2385.6,0.0397257]
[1726589625832,6.59085,2385.8,2385.6,0.0397257]
[1726589626342,4.19155,2385.8,2385.6,0.0397257]
[1726589627070,8.75421877,2386.0,2385.6,0.0397257]
[1726589627666,7.88130654,2386.0,2385.6,0.0397257]
[1726589628035,4.1913,2385.9,2385.6,0.0397257]
[1726589629331,4.19146,2385.8,2385.6,0.0397257]
[1726589629776,5.6170147,2385.9,2385.6,0.0397257]
[1726589629950,4.19154,2385.8,2385.6,0.0397257]
[1726589630354,4.19164,2385.7,2385.6,0.0397257]
[1726589630785,10.66988,2385.7,2385.6,0.0397257]
[1726589630993,12.83962692,2385.7,2385.6,0.0397257]
[1726589631158,7.36355968,2385.9,2385.6,0.0397257]
[1726589631159,0.87291223,2385.9,2385.6,0.0397257]
[1726589631472,4.19146,2385.8,2385.6,0.0397257]
[1726589631885,4.19131,2385.9,2385.6,0.0397257]
[1726589632049,5.47651904,2385.9,2385.6,0.0397257]
[1726589632968,4.19152,2385.8,2385.6,0.0397257]
[1726589634728,5.06397223,2386.1,2385.6,4.2314657]
[1726589635002,4.19106,2386.1,2385.7,4.19149]
[1726589635510,0.87291223,2386.3,2385.8,3.94212882]
[1726589635671,0.87291223,2386.6,2386.0,4.1911]
[1726589635870,4.19031,2386.5,2386.1,4.19085]
[1726589636071,7.53723223,2386.7,2386.2,4.19065]
[1726589636272,5.06255223,2386.9,2386.4,4.19033]
[1726589636471,5.06255223,2386.9,2386.4,4.19032]
[1726589636672,9.25221223,2386.9,2386.4,4.19032]
[1726589636912,5.06255223,2386.9,2386.4,4.19032]
[1726589637076,4.18964,2386.9,2386.4,4.19032]
[1726589637596,0.87291223,2386.9,2386.5,4.19014]
[1726589637796,5.06227223,2387.0,2386.5,4.19014]
[1726589638207,0.87291223,2387.0,2386.5,4.19014]
[1726589638365,0.87291223,2387.0,2386.6,4.18997]
[1726589638560,0.87291223,2387.1,2386.7,4.18986]
[1726589638899,4.18919,2387.1,2386.7,4.18979]
[1726589639106,7.53634223,2387.2,2386.7,4.18979]
[1726589639263,8.59560977,2387.2,2386.7,8.37959]
[1726589639467,12.78474977,2387.2,2386.7,4.18979]
[1726589639776,4.1892,2387.1,2386.7,4.18979]
[1726589640268,12.78474977,2387.2,2386.7,4.18979]
[1726589640664,1.93220977,2387.2,2386.9,4.18952]
[1726589640869,1.93220977,2387.2,2386.7,4.18979]
[1726589640870,5.06182223,2387.3,2386.8,4.18962]
[1726589641092,5.06182223,2387.3,2386.6,3.94212882]
[1726589641093,5.06182223,2387.3,2386.9,4.18945]
[1726589642209,0.87291223,2387.4,2387.0,4.18926]
[1726589642371,6.14267862,2387.4,2387.0,4.18926]
[1726589642765,0.87291223,2387.4,2387.2,4.18892]
[1726589643061,5.93494498,2387.6,2387.2,4.18891]
[1726589643062,0.87291223,2387.6,2387.2,4.18891]
[1726589643262,0.87291223,2387.6,2387.2,8.37778]
[1726589643509,0.87291223,2387.6,2387.2,8.37775]
[1726589643819,0.87291223,2387.8,2387.6,4.1883]
[1726589644036,0.87291223,2387.9,2387.7,4.18806]
[1726589644401,0.87291223,2388.0,2387.7,4.18806]
[1726589644701,2.24851355,2388.0,2387.7,4.18806]
[1726589644906,2.24851355,2388.0,2387.6,4.18829]
[1726589645436,2.24851355,2388.0,2387.5,3.0]
[1726589645437,4.1878,2387.9,2387.5,3.0]
[1726589645618,5.06071223,2387.9,2387.4,8.37713]
[1726589645792,6.48656941,2387.9,2387.4,8.37712]
[1726589645998,6.48656941,2387.9,2387.5,4.18846]
[1726589646202,0.87291223,2388.0,2387.6,4.18824]
[1726589646407,5.06052223,2388.0,2387.5,4.18838]
[1726589647032,0.87291223,2387.9,2387.5,4.18838]
[1726589647331,5.06069223,2387.9,2387.3,11.37742]
[1726589647542,9.24860223,2387.9,2387.4,4.18856]
[1726589647694,1.05586304,2387.8,2387.4,4.18856]
[1726589648533,5.24389304,2387.8,2387.4,4.18865]
[1726589648831,0.87291223,2387.9,2387.5,4.18839]
[1726589649059,5.06059223,2388.0,2387.5,4.18839]
[1726589649418,5.06059223,2388.0,2387.6,4.18826]
[1726589649819,4.18768,2388.0,2387.6,4.18826]
[1726589650133,3.19761223,2388.1,2387.7,4.18804]
[1726589650315,0.87291223,2388.2,2387.9,4.1877]
[1726589650514,5.97332068,2388.4,2387.9,4.18765]
[1726589650515,0.91263793,2388.4,2387.9,4.18765]
[1726589650757,0.0397257,2388.4,2388.2,4.18717]
[1726589651057,0.0397257,2388.4,2388.3,8.37414]
[1726589651363,0.0397257,2388.4,2388.3,11.37414]
[1726589651916,0.0397257,2388.4,2388.3,4.18707]
[1726589652117,0.0397257,2388.4,2388.0,4.18751]
[1726589652343,2.75228027,2388.4,2388.0,4.18751]
[1726589652651,4.18728,2388.2,2387.6,4.18822]
[1726589653211,4.18746,2388.1,2387.6,4.18822]
[1726589653456,4.18726,2388.2,2387.7,4.18812]
[1726589653761,12.31654882,2388.3,2387.7,4.18812]
[1726589654052,5.69416291,2388.2,2387.7,4.18812]
[1726589654255,5.69416291,2388.2,2387.6,4.18817]
[1726589654420,5.69416291,2388.2,2387.7,4.18811]
[1726589654621,9.88150291,2388.2,2387.7,4.18811]
[1726589654817,4.18744,2388.1,2387.7,4.18811]
[1726589655157,0.98816029,2388.0,2387.7,4.18811]
[1726589655528,4.18728,2388.2,2387.7,4.18811]
[1726589655731,4.18728,2388.2,2387.7,4.18804]
[1726589656257,4.18728,2388.2,2387.7,8.37608]
[1726589656457,4.18728,2388.2,2387.8,4.18795]
[1726589656679,6.93927027,2388.4,2387.8,4.18795]
[1726589656839,5.27530991,2388.3,2387.8,4.18795]
[1726589657040,4.18735,2388.2,2387.7,4.18803]
[1726589657273,4.18734,2388.2,2387.7,4.18803]
[1726589657574,8.37475,2388.2,2387.7,4.18803]
[1726589657783,4.18734,2388.2,2387.7,4.18803]
[1726589657941,0.92176087,2388.1,2387.7,4.18803]
[1726589658339,0.92176087,2388.1,2387.8,4.18791]
[1726589658979,0.92176087,2388.1,2387.7,8.37606]
[1726589659190,0.92176087,2388.1,2387.7,4.18803]
[1726589659398,0.92176087,2388.1,2387.7,8.37605]
[1726589659545,0.92176087,2388.1,2387.7,8.37606]
[1726589659979,0.92176087,2388.1,2387.7,4.18802]
[1726589660180,0.92176087,2388.1,2387.7,8.37605]
[1726589660387,0.92176087,2388.1,2387.7,4.18802]
[1726589660592,0.92176087,2388.1,2387.7,8.37607]
[1726589660793,0.92176087,2388.1,2387.8,4.18793]
[1726589660956,0.92176087,2388.1,2387.7,4.18154406]
[1726589661171,0.92176087,2388.1,2387.7,8.36956406]
[1726589661550,0.92176087,2388.1,2387.7,4.18154406]
[1726589661745,2.99811009,2388.0,2387.6,4.18823]
[1726589661950,2.99811009,2388.0,2387.5,4.18832]
[1726589662150,4.18778,2387.9,2387.5,4.18847]
[1726589662393,7.18572009,2388.0,2387.5,4.18847]
[1726589662592,1.13732901,2387.9,2387.6,4.18822]
[1726589663376,1.13732901,2387.9,2387.5,4.18845]
[1726589664439,1.13732901,2387.9,2387.6,4.18823]
[1726589665091,1.13732901,2387.9,2387.7,4.1881]
[1726589665288,2.4872,2388.0,2387.7,4.1881]
[1726589665535,2.4872,2388.0,2387.6,4.18822]
[1726589665709,2.4872,2388.0,2387.7,4.18811]
[1726589666026,6.6748,2388.0,2387.6,4.18822]
[1726589666202,0.66748,2387.9,2387.6,4.18822]
[1726589666802,0.66748,2387.9,2387.7,4.18812]
[1726589666998,2.4872,2388.0,2387.7,4.18812]
[1726589668544,2.4872,2388.0,2387.7,8.37614]
[1726589669007,2.4872,2388.0,2387.7,4.18802]
[1726589670644,2.4872,2388.0,2387.8,4.18794]
[1726589670860,2.4872,2388.0,2387.7,4.18811]
[1726589671037,3.154651,2388.0,2387.7,4.18811]
[1726589671585,7.342351,2388.0,2387.6,4.18814]
[1726589672408,4.18779,2387.9,2387.5,4.18844]
[1726589672604,4.9220341,2387.9,2387.5,4.18844]
[1726589672946,4.18807,2387.8,2387.4,4.18855]
[1726589673105,2.2995,2387.7,2387.4,4.18855]
[1726589673445,2.2995,2387.7,2387.4,8.37713]
[1726589674133,2.2995,2387.7,2387.4,4.18855]
[1726589674329,2.2995,2387.7,2387.4,8.37712]
[1726589674633,2.2995,2387.7,2387.4,4.18855]
[1726589675361,2.2995,2387.7,2387.4,8.3771]
[1726589675539,3.44045541,2387.7,2387.4,4.18855]
[1726589675839,3.44045541,2387.7,2387.3,7.18881]
[1726589675840,7.62860541,2387.7,2387.3,7.18881]
[1726589676037,7.62860541,2387.7,2387.2,4.18891]
[1726589676038,1.18165854,2387.6,2387.2,4.18898]
[1726589676351,6.4877,2387.7,2387.3,4.1888]
[1726589676841,10.67593,2387.7,2387.3,4.1888]
[1726589677051,4.18831,2387.6,2387.2,4.18898]
[1726589677253,4.18831,2387.6,2387.0,7.18919]
[1726589677254,2.459,2387.4,2387.0,7.18919]
[1726589677541,2.459,2387.4,2386.8,8.37916]
[1726589677748,2.459,2387.4,2386.8,4.18956]
[1726589677749,9.042619,2387.3,2386.8,4.18956]
[1726589678121,4.853659,2387.3,2386.8,4.18956]
[1726589678319,2.459,2387.2,2386.9,4.18951]
[1726589678558,2.459,2387.2,2387.0,4.18928]
[1726589678849,2.459,2387.2,2386.9,4.18944]
[1726589679432,4.18928,2387.1,2386.7,8.37953]
[1726589679660,11.9873779,2387.2,2386.7,4.18974]
[1726589679878,12.86029013,2387.2,2386.7,4.18974]
[1726589680336,0.87291223,2387.1,2386.7,8.37955]
[1726589680748,0.87291223,2387.1,2386.7,4.18974]
[1726589681039,8.67113013,2387.2,2386.8,4.18962]
[1726589681341,0.87291223,2387.1,2386.8,4.18962]
[1726589681756,0.87291223,2387.0,2386.8,4.18962]
[1726589683308,0.87291223,2386.9,2386.8,4.18962]
[1726589684357,0.87291223,2387.0,2386.8,4.18962]
[1726589685098,0.87291223,2386.9,2386.8,4.18962]
[1726589685692,0.87291223,2386.9,2386.7,4.18979]
[1726589685894,0.87291223,2386.9,2386.7,8.3796]
[1726589686998,3.34721223,2386.8,2386.5,4.19012]
[1726589687155,3.34721223,2386.8,2386.4,4.19037]
[1726589687156,0.87291223,2386.7,2386.4,4.19037]
[1726589687352,0.87291223,2386.6,2386.5,8.38046]
[1726589687620,3.34721223,2386.8,2386.5,4.19015]
[1726589687754,0.87291223,2386.7,2386.6,4.18996]
[1726589689666,0.87291223,2386.7,2386.5,4.19013]
[1726589689667,0.87291223,2386.7,2386.5,8.38026]
[1726589690093,0.87291223,2386.7,2386.5,4.19013]
[1726589690480,0.87291223,2386.6,2386.5,4.19013]
[1726589690701,0.87291223,2386.7,2386.5,4.19013]